[Event "44th Chess Olympiad Open 2022"]
[Site "Chennai"]
[Date "2022.08.01"]
[Round "4.60"]
[White "Barcon, Harmon"]
[Black "Kulpruethanon, Thanadon"]
[Result "0-1"]
[WhiteElo "1902"]
[BlackElo "2294"]
[Annotator "NA"]
[PlyCount "70"]
[EventDate "2022.??.??"]
[TimeControl "60"]

1. e4 {[%emt 0:00:03]} e5 {[%emt 0:00:09]} 2. Nf3 {[%emt 0:00:02]} Nc6 {
[%emt 0:00:07]} 3. Bc4 {[%emt 0:00:32]} Bc5 {[%emt 0:02:21]} 4. O-O {[%emt 0:
00:00]} Nf6 {[%emt 0:00:22]} 5. d3 {[%emt 0:00:31]} d6 {[%emt 0:01:18]} 6. h3 {
[%emt 0:00:13]} h6 {[%emt 0:01:31]} 7. c3 {[%emt 0:00:21]} Bb6 {[%emt 0:01:44]}
8. Na3 {[%emt 0:06:45]} g5 {[%emt 0:06:40]} 9. Nh2 {[%emt 0:01:54]} g4 {
[%emt 0:02:20]} 10. hxg4 {[%emt 0:06:41]} Rg8 {[%emt 0:00:37]} 11. Qf3 {
[%emt 0:09:07]} Qe7 {[%emt 0:01:54]} 12. Be3 {[%emt 0:02:53]} Nxg4 {[%emt 0:00:
00]} 13. Bxb6 {[%emt 0:02:04]} axb6 {[%emt 0:02:46]} 14. Nb5 {[%emt 0:06:57]}
Nxh2 {[%emt 0:10:07]} 15. Kxh2 {[%emt 0:01:26]} Bg4 {[%emt 0:00:47]} 16. Qe3 {
[%emt 0:02:56]} Qh4+ {[%emt 0:00:29]} 17. Kg1 {[%emt 0:00:14]} O-O-O {[%emt 0:
00:00]} 18. Rfe1 {[%emt 0:10:29]} Rg7 {[%emt 0:03:56]} 19. d4 {[%emt 0:00:11]}
Rdg8 {[%emt 0:01:47]} 20. Qg3 {[%emt 0:07:05]} Qf6 {[%emt 0:04:48]} 21. Bf1 {
[%emt 0:02:21]} Bf3 {[%emt 0:15:42]} 22. Qh3+ {[%emt 0:00:13]} Kb8 {[%emt 0:00:
00]} 23. g3 {[%emt 0:01:00]} Bg4 {[%emt 0:04:47]} 24. Qg2 {[%emt 0:02:17]} h5 {
[%emt 0:01:43]} 25. Be2 {[%emt 0:00:34]} h4 {[%emt 0:02:11]} 26. Bxg4 {[%emt 0:
00:00]} Rxg4 {[%emt 0:00:08]} 27. Re3 {[%emt 0:00:23]} exd4 {[%emt 0:00:57]}
28. cxd4 {[%emt 0:14:31]} Nxd4 {[%emt 0:00:53]} 29. Nc3 {[%emt 0:01:18]} hxg3 {
[%emt 0:09:48]} 30. f4 {[%emt 0:09:27]} Qh8 {[%emt 0:08:24]} 31. Rf1 {[%emt 0:
00:00]} Rh4 {[%emt 0:03:28]} 32. Rxg3 {[%emt 0:01:38]} Rxg3 {[%emt 0:05:29]}
33. Qxg3 {[%emt 0:00:05]} Qh5 {[%emt 0:00:21]} 34. Qe3 {[%emt 0:01:40]} Qg4+ {
[%emt 0:00:45]} 35. Kf2 {[%emt 0:00:03]} Rh2+ {[%emt 0:00:08]} 0-1

[Event "44th Chess Olympiad Open 2022"]
[Site "Chennai"]
[Date "2022.08.01"]
[Round "4.60"]
[White "Daniel Kolliemelen"]
[Black "Arunnuntapanich, Tinnakrit"]
[Result "0-1"]
[WhiteElo "1870"]
[BlackElo "2117"]
[Annotator "NA RC"]
[PlyCount "122"]
[EventDate "2022.??.??"]
[TimeControl "60"]

1. d4 {[%emt 0:00:39]} Nf6 {[%emt 0:00:01]} 2. f4 {[%emt 0:00:12]} d5 {[%emt 0:
00:00]} 3. e3 {[%emt 0:00:22]} Bf5 {[%emt 0:00:11]} 4. Bd3 {[%emt 0:00:06]} e6
{[%emt 0:00:07]} 5. Nf3 {[%emt 0:00:57]} Be7 {[%emt 0:00:12]} 6. O-O {[%emt 0:
00:00]} O-O {[%emt 0:00:06]} 7. c3 {[%emt 0:00:31]} Bxd3 {[%emt 0:06:19]} 8.
Qxd3 {[%emt 0:00:57]} c5 {[%emt 0:00:09]} 9. Nbd2 {[%emt 0:00:41]} Nc6 {
[%emt 0:00:08]} 10. Ne5 {[%emt 0:00:59]} Qc7 {[%emt 0:00:32]} 11. Rf3 {[%emt 0:
00:00]} Rab8 {[%emt 0:22:19]} 12. a4 {[%emt 0:05:48]} Rfd8 {[%emt 0:03:38]} 13.
Rh3 {[%emt 0:03:18]} g6 {[%emt 0:01:08]} 14. Rf3 {[%emt 0:01:03]} a6 {[%emt 0:
00:00]} 15. h3 {[%emt 0:04:38]} b5 {[%emt 0:03:56]} 16. Rf1 {[%emt 0:07:12]}
Qb6 {[%emt 0:04:44]} 17. Kh2 {[%emt 0:01:19]} b4 {[%emt 0:05:38]} 18. g4 {
[%emt 0:02:08]} Kg7 {[%emt 0:17:23]} 19. Rg1 {[%emt 0:00:28]} Ne8 {[%emt 0:00:
00]} 20. g5 {[%emt 0:01:39]} Nd6 {[%emt 0:03:58]} 21. Kg2 {[%emt 0:02:22]} Nf5
{[%emt 0:00:49]} 22. Rh1 {[%emt 0:00:31]} Nxe5 {[%emt 0:01:19]} 23. fxe5 {
[%emt 0:00:32]} Bxg5 {[%emt 0:00:59]} 24. Nf3 {[%emt 0:02:02]} Be7 {[%emt 0:00:
00]} 25. Bd2 {[%emt 0:02:50]} c4 {[%emt 0:01:27]} 26. Qc2 {[%emt 0:00:20]} bxc3
{[%emt 0:00:20]} 27. bxc3 {[%emt 0:05:52]} Qb2 {[%emt 0:01:55]} 28. Ra2 {
[%emt 0:04:52]} Qxc2 {[%emt 0:00:29]} 29. Rxc2 {[%emt 0:00:53]} Rb3 {[%emt 0:
00:00]} 30. Ra1 {[%emt 0:01:42]} Rdb8 {[%emt 0:00:07]} 31. Raa2 {[%emt 0:03:01]
} Rb1 {[%emt 0:02:52]} 32. Bc1 {[%emt 0:05:48]} f6 {[%emt 0:05:38]} 33. exf6+ {
[%emt 0:04:29]} Bxf6 {[%emt 0:00:04]} 34. Kh2 {[%emt 0:00:37]} Nd6 {[%emt 0:00:
00]} 35. Kg2 {[%emt 0:02:11]} Ne4 {[%emt 0:00:22]} 36. Nd2 {[%emt 0:00:07]}
Nxd2 {[%emt 0:00:09]} 37. Bxd2 {[%emt 0:01:00]} h5 {[%emt 0:00:24]} 38. Rc1 {
[%emt 0:03:38]} g5 {[%emt 0:01:46]} 39. a5 {[%emt 0:01:32]} Kg6 {[%emt 0:00:17]
} 40. Kf3 {[%emt 0:05:05]} Kf5 {[%emt 0:00:30]} 41. Rcc2 {[%emt 0:30:40]} g4+ {
[%emt 0:30:31]} 42. hxg4+ {[%emt 0:02:40]} hxg4+ {[%emt 0:00:11]} 43. Kg2 {
[%emt 0:00:22]} Ke4 {[%emt 0:00:30]} 44. Bc1 {[%emt 0:02:07]} Bh4 {[%emt 0:00:
00]} 45. Ra4 {[%emt 0:02:32]} Be1 {[%emt 0:00:44]} 46. Raa2 {[%emt 0:01:52]}
R8b3 {[%emt 0:01:07]} 47. Ba3 {[%emt 0:03:49]} Rxc3 {[%emt 0:00:45]} 48. Rxc3 {
[%emt 0:00:37]} Bxc3 {[%emt 0:00:03]} 49. Rf2 {[%emt 0:01:18]} Kxe3 {[%emt 0:
00:00]} 50. Rf6 {[%emt 0:00:33]} Bb4 {[%emt 0:01:52]} 51. Rxe6+ {[%emt 0:02:11]
} Kxd4 {[%emt 0:00:08]} 52. Rb6 {[%emt 0:03:58]} Bxa3 {[%emt 0:00:25]} 53. Rxb1
{[%emt 0:00:10]} c3 {[%emt 0:00:09]} 54. Rb3 {[%emt 0:01:14]} c2 {[%emt 0:00:
00]} 55. Rxa3 {[%emt 0:02:24]} c1=Q {[%emt 0:00:06]} 56. Ra4+ {[%emt 0:00:52]}
Ke3 {[%emt 0:00:07]} 57. Rxg4 {[%emt 0:00:58]} Qc2+ {[%emt 0:00:08]} 58. Kg3 {
[%emt 0:03:06]} Qf2+ {[%emt 0:02:28]} 59. Kh3 {[%emt 0:00:31]} Qf3+ {[%emt 0:
00:00]} 60. Kh4 {[%emt 0:01:00]} Qxg4+ {[%emt 0:00:11]} 61. Kxg4 {[%emt 0:00:
00]} d4 {[%emt 0:00:09]} 0-1

[Event "44th Chess Olympiad Open 2022"]
[Site "Chennai"]
[Date "2022.08.01"]
[Round "4.61"]
[White "Tagelsir, Abubaker"]
[Black "Pereira, Sergio Murilo de Ar"]
[Result "1-0"]
[WhiteElo "2232"]
[BlackElo "2093"]
[Annotator "NA RC"]
[PlyCount "73"]
[EventDate "2022.??.??"]
[TimeControl "60"]

1. Nf3 {[%emt 0:00:51]} d5 {[%emt 0:00:07]} 2. g3 {[%emt 0:00:07]} Nf6 {
[%emt 0:00:16]} 3. Bg2 {[%emt 0:00:06]} c5 {[%emt 0:00:08]} 4. O-O {[%emt 0:00:
00]} e6 {[%emt 0:00:13]} 5. d3 {[%emt 0:00:39]} Nc6 {[%emt 0:00:05]} 6. Nbd2 {
[%emt 0:00:06]} Be7 {[%emt 0:00:18]} 7. e4 {[%emt 0:00:08]} O-O {[%emt 0:00:30]
} 8. e5 {[%emt 0:00:13]} Nd7 {[%emt 0:00:06]} 9. Re1 {[%emt 0:00:06]} h6 {
[%emt 0:08:52]} 10. Nf1 {[%emt 0:03:20]} b5 {[%emt 0:00:55]} 11. h4 {[%emt 0:
00:00]} a5 {[%emt 0:01:16]} 12. N1h2 {[%emt 0:00:40]} f5 {[%emt 0:03:31]} 13.
exf6 {[%emt 0:07:03]} Nxf6 {[%emt 0:00:05]} 14. Qe2 {[%emt 0:03:48]} Bd6 {
[%emt 0:02:07]} 15. c4 {[%emt 0:03:39]} Rb8 {[%emt 0:23:08]} 16. b3 {[%emt 0:
00:00]} Bd7 {[%emt 0:15:11]} 17. Bb2 {[%emt 0:07:41]} bxc4 {[%emt 0:18:41]} 18.
dxc4 {[%emt 0:09:04]} a4 {[%emt 0:03:56]} 19. Qd1 {[%emt 0:02:04]} d4 {[%emt 0:
00:00]} 20. Nd2 {[%emt 0:03:03]} Ne5 {[%emt 0:01:02]} 21. Qe2 {[%emt 0:00:41]}
Qc7 {[%emt 0:07:56]} 22. Bh3 {[%emt 0:14:24]} Rbe8 {[%emt 0:02:36]} 23. Rad1 {
[%emt 0:00:38]} axb3 {[%emt 0:05:48]} 24. axb3 {[%emt 0:00:08]} Qb7 {[%emt 0:
00:00]} 25. Bc1 {[%emt 0:01:43]} Re7 {[%emt 0:00:56]} 26. f4 {[%emt 0:00:46]}
Nf7 {[%emt 0:00:52]} 27. Ng4 {[%emt 0:01:06]} Nxg4 {[%emt 0:00:31]} 28. Qxg4 {
[%emt 0:00:02]} e5 {[%emt 0:01:24]} 29. f5 {[%emt 0:00:22]} e4 {[%emt 0:00:58]}
30. Nxe4 {[%emt 0:01:57]} Qxb3 {[%emt 0:00:35]} 31. Nf6+ {[%emt 0:03:05]} Kh8 {
[%emt 0:00:00]} 32. Rxe7 {[%emt 0:05:00]} Bxf5 {[%emt 0:00:47]} 33. Qxf5 {
[%emt 0:00:15]} Qxd1+ {[%emt 0:00:17]} 34. Bf1 {[%emt 0:00:23]} gxf6 {[%emt 0:
00:00]} 35. Qxf6+ {[%emt 0:00:07]} Kg8 {[%emt 0:00:33]} 36. Qg6+ {[%emt 0:00:
00]} Kh8 {[%emt 0:00:00]} 37. Rxf7 {[%emt 0:01:42]} 1-0

[Event "44th Chess Olympiad Open 2022"]
[Site "Chennai"]
[Date "2022.08.01"]
[Round "4.61"]
[White "Hamid Mohammed"]
[Black "Espirito Santo, Waldyr"]
[Result "1-0"]
[WhiteElo "2116"]
[BlackElo "1922"]
[Annotator "NA RC"]
[PlyCount "83"]
[EventDate "2022.??.??"]
[TimeControl "60"]

1. d4 {[%emt 0:00:11]} Nf6 {[%emt 0:01:17]} 2. Nf3 {[%emt 0:00:08]} g6 {
[%emt 0:00:42]} 3. Bf4 {[%emt 0:00:10]} Bg7 {[%emt 0:00:36]} 4. e3 {[%emt 0:00:
00]} O-O {[%emt 0:00:47]} 5. h3 {[%emt 0:00:18]} d6 {[%emt 0:01:31]} 6. c4 {
[%emt 0:00:25]} Nbd7 {[%emt 0:00:29]} 7. Nc3 {[%emt 0:02:41]} b6 {[%emt 0:00:
00]} 8. Be2 {[%emt 0:01:08]} Bb7 {[%emt 0:00:15]} 9. O-O {[%emt 0:05:27]} Ne4 {
[%emt 0:00:42]} 10. a4 {[%emt 0:01:59]} Nxc3 {[%emt 0:01:32]} 11. bxc3 {
[%emt 0:00:04]} a5 {[%emt 0:05:07]} 12. Qc2 {[%emt 0:11:13]} Qe8 {[%emt 0:00:
00]} 13. Rfd1 {[%emt 0:03:12]} e5 {[%emt 0:02:21]} 14. Bg3 {[%emt 0:01:32]} f5
{[%emt 0:04:43]} 15. Re1 {[%emt 0:09:25]} Be4 {[%emt 0:00:58]} 16. Qb3 {
[%emt 0:00:54]} Bxf3 {[%emt 0:07:44]} 17. Bxf3 {[%emt 0:01:07]} e4 {[%emt 0:00:
00]} 18. Be2 {[%emt 0:01:29]} Kh8 {[%emt 0:02:19]} 19. Qb5 {[%emt 0:09:24]} Qe7
{[%emt 0:03:16]} 20. Qc6 {[%emt 0:08:03]} Ra7 {[%emt 0:05:08]} 21. Rad1 {
[%emt 0:04:21]} Nb8 {[%emt 0:03:01]} 22. Qb5 {[%emt 0:00:10]} Nd7 {[%emt 0:00:
00]} 23. Kh1 {[%emt 0:10:25]} g5 {[%emt 0:03:42]} 24. f4 {[%emt 0:02:58]} Bh6 {
[%emt 0:02:12]} 25. Rf1 {[%emt 0:01:32]} gxf4 {[%emt 0:01:17]} 26. Bxf4 {
[%emt 0:00:31]} Bg7 {[%emt 0:01:25]} 27. Rf2 {[%emt 0:02:40]} Raa8 {[%emt 0:00:
00]} 28. Qc6 {[%emt 0:00:38]} Ra7 {[%emt 0:01:02]} 29. Rdf1 {[%emt 0:00:10]}
Nb8 {[%emt 0:01:21]} 30. Qb5 {[%emt 0:04:15]} Nd7 {[%emt 0:03:04]} 31. Bg3 {
[%emt 0:04:39]} Raa8 {[%emt 0:07:53]} 32. Rxf5 {[%emt 0:01:17]} Rxf5 {[%emt 0:
00:00]} 33. Rxf5 {[%emt 0:00:16]} Rf8 {[%emt 0:01:25]} 34. Bg4 {[%emt 0:02:51]}
Rxf5 {[%emt 0:02:18]} 35. Qxf5 {[%emt 0:01:30]} Nf8 {[%emt 0:00:25]} 36. Bf4 {
[%emt 0:00:30]} Qe8 {[%emt 0:02:30]} 37. Bd1 {[%emt 0:05:05]} Ng6 {[%emt 0:00:
00]} 38. Bg5 {[%emt 0:00:56]} c5 {[%emt 0:03:52]} 39. Bc2 {[%emt 0:00:56]} cxd4
{[%emt 0:00:48]} 40. cxd4 {[%emt 0:00:17]} Nf8 {[%emt 0:00:37]} 41. Bxe4 {
[%emt 0:31:38]} Qxa4 {[%emt 0:31:17]} 42. Be7 {[%emt 0:02:56]} 1-0

[Event "44th Chess Olympiad Open 2022"]
[Site "Chennai"]
[Date "2022.08.01"]
[Round "4.61"]
[White "Lima, Osvaldo Dos Santos"]
[Black "Hassan, Tarek Ahmed"]
[Result "0-1"]
[WhiteElo "1863"]
[BlackElo "2209"]
[Annotator "NA RC"]
[PlyCount "68"]
[EventDate "2022.??.??"]
[TimeControl "60"]

1. c4 {[%emt 0:01:10]} b6 {[%emt 0:01:19]} 2. d4 {[%emt 0:00:36]} e6 {[%emt 0:
00:00]} 3. Nc3 {[%emt 0:00:30]} Bb7 {[%emt 0:02:26]} 4. Nf3 {[%emt 0:07:31]}
Nf6 {[%emt 0:01:42]} 5. g3 {[%emt 0:00:43]} Be7 {[%emt 0:05:13]} 6. Bg2 {
[%emt 0:00:16]} O-O {[%emt 0:00:47]} 7. O-O {[%emt 0:00:03]} d5 {[%emt 0:01:34]
} 8. cxd5 {[%emt 0:02:39]} Nxd5 {[%emt 0:03:44]} 9. Nxd5 {[%emt 0:03:26]} Bxd5
{[%emt 0:05:34]} 10. Qc2 {[%emt 0:00:49]} Nd7 {[%emt 0:08:48]} 11. e4 {[%emt 0:
00:00]} Bb7 {[%emt 0:00:51]} 12. Be3 {[%emt 0:02:11]} c5 {[%emt 0:12:52]} 13.
Rfd1 {[%emt 0:08:15]} cxd4 {[%emt 0:10:15]} 14. Rxd4 {[%emt 0:01:32]} Bc5 {
[%emt 0:01:11]} 15. Rd2 {[%emt 0:06:50]} Bxe3 {[%emt 0:00:40]} 16. fxe3 {
[%emt 0:00:51]} Rc8 {[%emt 0:00:26]} 17. Qd1 {[%emt 0:06:14]} Rc7 {[%emt 0:00:
00]} 18. Ne5 {[%emt 0:02:36]} Bc8 {[%emt 0:01:14]} 19. Rc1 {[%emt 0:14:16]}
Rxc1 {[%emt 0:00:24]} 20. Qxc1 {[%emt 0:00:02]} Qg5 {[%emt 0:03:33]} 21. Rxd7 {
[%emt 0:02:56]} Bxd7 {[%emt 0:00:44]} 22. Nxd7 {[%emt 0:03:44]} Rd8 {[%emt 0:
00:00]} 23. h4 {[%emt 0:03:04]} Qxg3 {[%emt 0:04:24]} 24. e5 {[%emt 0:11:20]}
h5 {[%emt 0:05:22]} 25. Qc7 {[%emt 0:06:48]} Qxe3+ {[%emt 0:00:56]} 26. Kh2 {
[%emt 0:00:51]} Qf4+ {[%emt 0:00:31]} 27. Kg1 {[%emt 0:02:04]} Qd4+ {[%emt 0:
00:00]} 28. Kh2 {[%emt 0:02:16]} Qxd7 {[%emt 0:00:07]} 29. Qc3 {[%emt 0:01:36]}
Qd4 {[%emt 0:00:08]} 30. Qg3 {[%emt 0:00:12]} Qg4 {[%emt 0:00:21]} 31. b3 {
[%emt 0:01:40]} Qxg3+ {[%emt 0:01:05]} 32. Kxg3 {[%emt 0:00:57]} Rd2 {[%emt 0:
00:00]} 33. b4 {[%emt 0:00:21]} Rxa2 {[%emt 0:00:18]} 34. Bc6 {[%emt 0:00:08]}
a5 {[%emt 0:00:32]} 0-1

[Event "44th Chess Olympiad Open 2022"]
[Site "Chennai"]
[Date "2022.08.01"]
[Round "4.61"]
[White "Alegre, Fabio Costa"]
[Black "Abdelazeez, Mohamed Abdalla"]
[Result "0-1"]
[WhiteElo "1809"]
[BlackElo "2182"]
[Annotator "NA RC"]
[PlyCount "40"]
[EventDate "2022.??.??"]
[TimeControl "60"]

1. e4 {[%emt 0:00:02]} e5 {[%emt 0:01:24]} 2. Nf3 {[%emt 0:00:08]} Nc6 {
[%emt 0:00:08]} 3. Bb5 {[%emt 0:00:08]} f5 {[%emt 0:00:57]} 4. d4 {[%emt 0:00:
00]} Nf6 {[%emt 0:02:00]} 5. O-O {[%emt 0:00:44]} fxe4 {[%emt 0:01:49]} 6. Nxe5
{[%emt 0:02:32]} Bd6 {[%emt 0:00:52]} 7. Bf4 {[%emt 0:01:22]} Qe7 {[%emt 0:00:
00]} 8. Nc3 {[%emt 0:00:03]} O-O {[%emt 0:05:54]} 9. Bc4+ {[%emt 0:00:29]} Kh8
{[%emt 0:00:06]} 10. Nxc6 {[%emt 0:19:51]} dxc6 {[%emt 0:00:12]} 11. Bg5 {
[%emt 0:00:10]} Be6 {[%emt 0:04:44]} 12. Bxe6 {[%emt 0:00:55]} Qxe6 {[%emt 0:
00:00]} 13. Re1 {[%emt 0:00:02]} Ng4 {[%emt 0:01:35]} 14. f4 {[%emt 0:02:15]}
Bxf4 {[%emt 0:00:44]} 15. Bxf4 {[%emt 0:02:09]} Rxf4 {[%emt 0:00:09]} 16. Ne2 {
[%emt 0:00:40]} Qh6 {[%emt 0:11:13]} 17. h3 {[%emt 0:00:41]} Nf2 {[%emt 0:00:
00]} 18. Qd2 {[%emt 0:01:11]} Nxh3+ {[%emt 0:00:17]} 19. gxh3 {[%emt 0:00:13]}
Rg4+ {[%emt 0:02:10]} 20. hxg4 {[%emt 0:00:12]} Qxd2 {[%emt 0:00:08]} 0-1

[Event "44th Chess Olympiad Open 2022"]
[Site "Chennai"]
[Date "2022.08.01"]
[Round "4.62"]
[White "Isaakidis, Alexandros"]
[Black "Miswadah, Baha"]
[Result "0-1"]
[WhiteElo "2165"]
[BlackElo "1985"]
[Annotator "RC"]
[PlyCount "106"]
[EventDate "2022.??.??"]
[TimeControl "60"]

1. d4 {[%emt 0:00:14]} d5 {[%emt 0:00:24]} 2. c4 {[%emt 0:00:08]} e6 {[%emt 0:
00:00]} 3. Nc3 {[%emt 0:00:08]} c6 {[%emt 0:04:19]} 4. Nf3 {[%emt 0:01:50]}
dxc4 {[%emt 0:00:00]} 5. e4 {[%emt 0:02:41]} b5 {[%emt 0:00:00]} 6. Be2 {
[%emt 0:00:28]} Bb4 {[%emt 0:01:09]} 7. O-O {[%emt 0:02:47]} Bb7 {[%emt 0:00:
00]} 8. Bg5 {[%emt 0:04:54]} Ne7 {[%emt 0:04:41]} 9. e5 {[%emt 0:10:10]} Bxc3 {
[%emt 0:04:06]} 10. bxc3 {[%emt 0:01:48]} c5 {[%emt 0:00:00]} 11. dxc5 {
[%emt 0:02:24]} Qxd1 {[%emt 0:00:00]} 12. Rfxd1 {[%emt 0:01:10]} Nd5 {[%emt 0:
00:00]} 13. Nd4 {[%emt 0:10:34]} a6 {[%emt 0:02:11]} 14. Bf3 {[%emt 0:02:06]}
O-O {[%emt 0:04:15]} 15. a4 {[%emt 0:18:34]} Nc6 {[%emt 0:03:59]} 16. Bxd5 {
[%emt 0:13:07]} exd5 {[%emt 0:02:02]} 17. Nxc6 {[%emt 0:04:15]} Bxc6 {[%emt 0:
00:00]} 18. a5 {[%emt 0:00:36]} Rfe8 {[%emt 0:05:58]} 19. Bf4 {[%emt 0:00:09]}
h6 {[%emt 0:05:45]} 20. f3 {[%emt 0:00:09]} g5 {[%emt 0:01:40]} 21. Bg3 {
[%emt 0:00:08]} Rac8 {[%emt 0:00:48]} 22. h4 {[%emt 0:10:12]} Bb7 {[%emt 0:00:
00]} 23. hxg5 {[%emt 0:01:48]} hxg5 {[%emt 0:01:01]} 24. Rd4 {[%emt 0:02:23]}
Re6 {[%emt 0:01:54]} 25. Rg4 {[%emt 0:00:30]} Rg6 {[%emt 0:00:32]} 26. Bf2 {
[%emt 0:00:43]} Re8 {[%emt 0:04:46]} 27. Bd4 {[%emt 0:01:43]} Bc8 {[%emt 0:00:
00]} 28. Rg3 {[%emt 0:00:02]} g4 {[%emt 0:01:02]} 29. Kf2 {[%emt 0:01:10]} Kf8
{[%emt 0:01:55]} 30. Rh1 {[%emt 0:01:05]} Ke7 {[%emt 0:01:38]} 31. Rh5 {
[%emt 0:00:55]} gxf3 {[%emt 0:10:03]} 32. Rxg6 {[%emt 0:00:03]} fxg6 {[%emt 0:
00:00]} 33. Rh7+ {[%emt 0:00:05]} Ke6 {[%emt 0:00:45]} 34. gxf3 {[%emt 0:00:24]
} Rf8 {[%emt 0:03:08]} 35. Ke3 {[%emt 0:02:50]} Kf5 {[%emt 0:08:08]} 36. Ra7 {
[%emt 0:02:10]} g5 {[%emt 0:02:10]} 37. Rg7 {[%emt 0:01:53]} Be6 {[%emt 0:00:
00]} 38. Ra7 {[%emt 0:01:26]} Bc8 {[%emt 0:00:25]} 39. Ra8 {[%emt 0:01:05]} g4
{[%emt 0:00:53]} 40. fxg4+ {[%emt 0:00:02]} Kxg4 {[%emt 0:00:24]} 41. c6 {
[%emt 0:06:48]} Kf5 {[%emt 0:07:10]} 42. Bc5 {[%emt 0:03:29]} Rg8 {[%emt 0:00:
00]} 43. Bd6 {[%emt 0:05:25]} b4 {[%emt 0:15:09]} 44. cxb4 {[%emt 0:13:28]}
Rg3+ {[%emt 0:01:07]} 45. Kd4 {[%emt 0:03:00]} Rd3+ {[%emt 0:01:00]} 46. Kc5 {
[%emt 0:00:01]} c3 {[%emt 0:01:37]} 47. Rxc8 {[%emt 0:00:13]} c2 {[%emt 0:00:
00]} 48. Rf8+ {[%emt 0:00:28]} Ke4 {[%emt 0:00:30]} 49. Kb6 {[%emt 0:01:58]}
c1=Q {[%emt 0:01:11]} 50. c7 {[%emt 0:00:15]} Qg1+ {[%emt 0:08:11]} 51. Bc5 {
[%emt 0:00:38]} Qg6+ {[%emt 0:00:11]} 52. Kb7 {[%emt 0:01:14]} Qg7 {[%emt 0:00:
00]} 53. Ka8 {[%emt 0:00:35]} Qxc7 {[%emt 0:00:29]} 0-1

[Event "44th Chess Olympiad Open 2022"]
[Site "Chennai"]
[Date "2022.08.01"]
[Round "4.62"]
[White "Isam, Gaith"]
[Black "Damianou, Ioannis"]
[Result "0-1"]
[WhiteElo "1828"]
[BlackElo "2153"]
[Annotator "NA RC"]
[PlyCount "106"]
[EventDate "2022.??.??"]
[TimeControl "60"]

1. e4 {[%emt 0:01:19]} c5 {[%emt 0:00:08]} 2. Nc3 {[%emt 0:00:11]} Nc6 {
[%emt 0:00:07]} 3. f4 {[%emt 0:00:10]} g6 {[%emt 0:01:10]} 4. Nf3 {[%emt 0:00:
00]} Bg7 {[%emt 0:00:06]} 5. a4 {[%emt 0:04:09]} e6 {[%emt 0:04:56]} 6. e5 {
[%emt 0:06:02]} d6 {[%emt 0:00:33]} 7. Bb5 {[%emt 0:00:37]} Nge7 {[%emt 0:00:
00]} 8. Ne4 {[%emt 0:05:10]} dxe5 {[%emt 0:00:09]} 9. fxe5 {[%emt 0:01:04]} O-O
{[%emt 0:00:25]} 10. Nf6+ {[%emt 0:03:05]} Kh8 {[%emt 0:29:39]} 11. Bxc6 {
[%emt 0:15:18]} Nxc6 {[%emt 0:02:10]} 12. Qe2 {[%emt 0:01:59]} Nxe5 {[%emt 0:
00:00]} 13. Qxe5 {[%emt 0:00:24]} Bxf6 {[%emt 0:00:34]} 14. Qxc5 {[%emt 0:00:
00]} e5 {[%emt 0:00:51]} 15. d3 {[%emt 0:08:11]} Bg4 {[%emt 0:02:33]} 16. Qf2 {
[%emt 0:03:47]} Bg7 {[%emt 0:11:00]} 17. O-O {[%emt 0:06:10]} Rc8 {[%emt 0:00:
00]} 18. Ne1 {[%emt 0:05:45]} a6 {[%emt 0:02:31]} 19. Be3 {[%emt 0:00:47]} Qd5
{[%emt 0:00:53]} 20. Rc1 {[%emt 0:11:01]} Bd7 {[%emt 0:02:24]} 21. c4 {[%emt 0:
00:00]} Qd6 {[%emt 0:01:20]} 22. Nf3 {[%emt 0:04:08]} Bxa4 {[%emt 0:01:41]} 23.
b3 {[%emt 0:01:12]} Bxb3 {[%emt 0:03:53]} 24. Qh4 {[%emt 0:01:19]} Qxd3 {
[%emt 0:03:40]} 25. Bh6 {[%emt 0:00:45]} Rxc4 {[%emt 0:02:08]} 26. Rxc4 {
[%emt 0:08:30]} Qxc4 {[%emt 0:01:02]} 27. Qh3 {[%emt 0:02:09]} e4 {[%emt 0:00:
00]} 28. Nd2 {[%emt 0:01:44]} Qc5+ {[%emt 0:00:46]} 29. Be3 {[%emt 0:01:22]}
Bd4 {[%emt 0:00:54]} 30. Nxb3 {[%emt 0:01:24]} Bxe3+ {[%emt 0:00:05]} 31. Kh1 {
[%emt 0:00:07]} Qc4 {[%emt 0:00:49]} 32. Re1 {[%emt 0:01:07]} Qxb3 {[%emt 0:00:
00]} 33. Qxe3 {[%emt 0:00:12]} Qxe3 {[%emt 0:00:07]} 34. Rxe3 {[%emt 0:00:04]}
f5 {[%emt 0:00:37]} 35. Rc3 {[%emt 0:00:18]} Kg7 {[%emt 0:00:49]} 36. Kg1 {
[%emt 0:00:06]} Kf6 {[%emt 0:00:21]} 37. Kf2 {[%emt 0:00:02]} f4 {[%emt 0:00:
00]} 38. g3 {[%emt 0:00:13]} g5 {[%emt 0:00:25]} 39. h4 {[%emt 0:00:11]} fxg3+
{[%emt 0:00:18]} 40. Kxg3 {[%emt 0:00:03]} gxh4+ {[%emt 0:00:42]} 41. Kf4 {
[%emt 0:30:07]} Re8 {[%emt 0:31:00]} 42. Ke3 {[%emt 0:00:09]} h3 {[%emt 0:00:
00]} 43. Rc1 {[%emt 0:00:37]} Kg5 {[%emt 0:01:13]} 44. Rc7 {[%emt 0:00:27]} h5
{[%emt 0:00:32]} 45. Rxb7 {[%emt 0:00:16]} h2 {[%emt 0:00:13]} 46. Rb1 {
[%emt 0:00:06]} Kg4 {[%emt 0:00:22]} 47. Kf2 {[%emt 0:00:27]} e3+ {[%emt 0:00:
00]} 48. Kg2 {[%emt 0:00:02]} e2 {[%emt 0:00:05]} 49. Re1 {[%emt 0:00:20]}
h1=Q+ {[%emt 0:00:26]} 50. Kxh1 {[%emt 0:02:23]} Kf3 {[%emt 0:00:06]} 51. Kg1 {
[%emt 0:01:07]} Rg8+ {[%emt 0:00:35]} 52. Kh2 {[%emt 0:00:29]} Kf2 {[%emt 0:00:
00]} 53. Rf1+ {[%emt 0:03:09]} exf1=R {[%emt 0:00:17]} 0-1